[Event "WYCC 2018 O18"]
[Site "Halkidiki"]
[Date "2018.10.24"]
[Round "6"]
[White "Alexakis, Dimitris"]
[Black "Ranaldi, Lucas"]
[Result "1-0"]
[ECO "C11"]
[WhiteElo "2186"]
[BlackElo "2335"]
[Annotator "ChessBase"]
[PlyCount "125"]
[EventDate "2018.10.20"]
[EventType "swiss"]
[EventCountry "GRE"]
[SourceTitle "playchess.com"]
[Source "ChessBase"]
[SourceQuality "1"]
[TimeControl "40/5400+30:1800+30"]

1. e4 {[%emt 0:00:00]} e6 {[%emt 0:00:00]} 2. d4 {[%emt 0:01:09]} d5 {[%emt 0:00:00]} 3. Nc3 {[%emt 0:00:14]} Nf6 {[%emt 0:00:00]} 4. e5 {[%emt 0:00:10]} Nfd7 {[%emt 0:00:00]} 5. f4 {[%emt 0:00:05]} c5 {[%emt 0:00:08]} 6. Nf3 {[%emt 0:00:03]} Nc6 {[%emt 0:00:11]} 7. Be3 {[%emt 0:00:03]} h6 {[%emt 0:00:11]} 8. Qd2 {[%emt 0:31:55]} g5 {[%emt 0:00:06]} 9. dxc5 {[%emt 0:04:49]} gxf4 {[%emt 0:01:04]} 10. Bxf4 {[%emt 0:01:34]} Nxc5 {[%emt 0:00:14]} 11. a3 {[%emt 0:16:17]} a6 {[%emt 0:17:36]} 12. Bd3 {[%emt 0:26:39]} Bd7 {[%emt 0:14:17]} 13. O-O {[%emt 0:03:55]} b5 {[%emt 0:26:25]} 14. b4 {[%emt 0:01:06]} Nxd3 {[%emt 0:01:26]} 15. Qxd3 {[%emt 0:05:36]} Rc8 {[%emt 0:08:07]} 16. Ne2 {[%emt 0:00:25]} Ne7 {[%emt 0:00:49]} 17. Nfd4 {[%emt 0:03:37]} Ng6 {[%emt 0:00:54]} 18. Bg3 {[%emt 0:00:20]} Qg5 {[%emt 0:05:23]} 19. Rae1 {[%emt 0:00:57]} Bg7 {[%emt 0:04:01]} 20. Nf3 {[%emt 0:00:30]} Qg4 {[%emt 0:02:17]} 21. h3 {[%emt 0:00:26]} Qc4 {[%emt 0:08:38]} 22. Qxc4 {[%emt 0:00:36]} Rxc4 {[%emt 0:00:30]} 23. Ned4 {[%emt 0:00:09]} Rc3 {[%emt 0:04:18]} 24. Nb3 {[%emt 0:00:48]} Ke7 {[%emt 0:01:59]} 25. h4 {[%emt 0:00:30]} h5 {[%emt 0:01:46]} 26. Bf2 {[%emt 0:00:28]} Rhc8 {[%emt 0:01:44]} 27. Bc5+ {[%emt 0:00:19]} Ke8 {[%emt 0:00:24]} 28. Ng5 {[%emt 0:00:37]} Nh8 {[%emt 0:00:55]} 29. Rf2 {[%emt 0:00:33]} Rc7 {[%emt 0:00:23]} 30. Bd6 {[%emt 0:00:32]} Rxc2 {[%emt 0:00:37]} 31. Bxc7 {[%emt 0:00:33]} Rxc7 {[%emt 0:00:02]} 32. Nc5 {[%emt 0:00:23]} Bc8 {[%emt 0:00:12]} 33. Nh7 {[%emt 0:00:30]} Ng6 {[%emt 0:00:48]} 34. Nf6+ {[%emt 0:00:09]} Kd8 {[%emt 0:00:37]} 35. g3 {[%emt 0:00:47]} Ke7 {[%emt 0:00:39]} 36. Ng8+ {[%emt 0:00:37]} Kf8 {[%emt 0:00:15]} 37. Nf6 {[%emt 0:00:07]} Ke7 {[%emt 0:00:16]} 38. Kg2 {[%emt 0:00:50]} Nxe5 {[%emt 0:00:43]} 39. Nxh5 {[%emt 0:00:36]} Bh8 {[%emt 0:00:16]} 40. Nf4 {[%emt 0:00:00]} Bb7 {[%emt 0:00:00]} 41. Rfe2 {[%emt 0:16:32]} Kd6 {[%emt 0:11:01]} 42. Nfd3 {[%emt 0:03:13]} f6 {[%emt 0:01:15]} 43. Nf4 {[%emt 0:04:39]} Bc8 {[%emt 0:02:31]} 44. h5 {[%emt 0:02:28]} Re7 {[%emt 0:04:29]} 45. h6 {[%emt 0:03:49]} Rh7 {[%emt 0:01:26]} 46. Rh1 {[%emt 0:00:45]} f5 {[%emt 0:01:02]} 47. Rh3 {[%emt 0:01:51]} Bf6 {[%emt 0:00:45]} 48. Rh5 {[%emt 0:01:12]} a5 {[%emt 0:06:29]} 49. Re1 {[%emt 0:00:30]} a4 {[%emt 0:00:31]} 50. Re2 {[%emt 0:00:32]} Bh8 {[%emt 0:06:31]} 51. Nh3 {[%emt 0:00:31]} Nf7 {[%emt 0:00:38]} 52. Ng5 {[%emt 0:00:24]} Nxg5 {[%emt 0:00:09]} 53. Rxg5 {[%emt 0:00:03]} Rxh6 {[%emt 0:00:23]} 54. Rg8 {[%emt 0:00:33]} Bd7 {[%emt 0:00:43]} 55. Rd8 {[%emt 0:00:53]} Rh7 {[%emt 0:00:09]} 56. Nxd7 {[%emt 0:00:37]} Rxd7 {[%emt 0:00:24]} 57. Rxh8 {[%emt 0:00:05]} Re7 {[%emt 0:00:33]} 58. Rb8 {[%emt 0:00:40]} d4 {[%emt 0:00:28]} 59. Rd8+ {[%emt 0:00:18]} Rd7 {[%emt 0:00:18]} 60. Rxd7+ Kxd7 {[%emt 0:00:01]} 61. Re5 {[%emt 0:00:12]} Kd6 {[%emt 0:00:19]} 62. Rxb5 {[%emt 0:00:09]} e5 {[%emt 0:00:04]} 63. Kf3 {[%emt 0:00:04] Kd5 Ke4+} 1-0

[Event "WYCC 2018 O18"]
[Site "Halkidiki"]
[Date "2018.10.24"]
[Round "6"]
[White "Lindbol, Aleksander"]
[Black "Wang, Shixu B"]
[Result "1/2-1/2"]
[ECO "B90"]
[WhiteElo "2166"]
[BlackElo "2330"]
[Annotator "NA"]
[PlyCount "72"]
[EventDate "2018.10.20"]
[EventType "swiss"]
[EventCountry "GRE"]
[SourceTitle "playchess.com"]
[Source "ChessBase"]
[SourceQuality "1"]
[TimeControl "40/5400+30:1800+30"]

1. e4 {[%emt 0:00:00]} c5 {[%emt 0:00:32]} 2. Nf3 {[%emt 0:00:00]} d6 {[%emt 0:00:38]} 3. d4 {[%emt 0:00:19]} cxd4 {[%emt 0:00:07]} 4. Nxd4 {[%emt 0:00:06]} Nf6 {[%emt 0:00:05]} 5. Nc3 {[%emt 0:00:06]} a6 {[%emt 0:00:04]} 6. f3 {[%emt 0:00:27]} e5 {[%emt 0:00:33]} 7. Nb3 {[%emt 0:00:07]} Be6 {[%emt 0:00:23]} 8. Be3 {[%emt 0:00:11]} Nbd7 {[%emt 0:00:17]} 9. g4 {[%emt 0:01:02]} b5 {[%emt 0:00:45]} 10. g5 {[%emt 0:01:50] B90: Sicilian Najdorf: Unusual White 6th moves, 6 Be3 Ng4 and 6 Be3 e5} b4 {[%emt 0:00:19]} 11. Nd5 {[%emt 0:00:20]} Nxd5 {[%emt 0:03:41]} 12. exd5 {[%emt 0:00:07]} Bf5 {[%emt 0:00:05]} 13. Bd3 {[%emt 0:00:13]} Bxd3 {[%emt 0:02:48]} 14. Qxd3 {[%emt 0:00:08]} Be7 {[%emt 0:01:32] LiveBook: 83 Games} 15. h4 {[%emt 0:00:23]} O-O {[%emt 0:03:56]} 16. O-O-O {[%emt 0:09:37] [#]} Rc8 $146 {[%emt 0:02:35]} ({Predecessor:} 16... a5 17. Kb1 f5 {½-½ (40) Anand,V (2803)-Bu,X (2640) Turin 2006}) 17. Kb1 {[%emt 0:17:53]} a5 {[%emt 0:02:34]} 18. f4 {[%emt 0:10:57]} a4 {[%emt 0:18:02]} 19. Nd2 {[%emt 0:02:24]} f5 {[%emt 0:04:23]} 20. gxf6 {[%emt 0:13:18]} Nxf6 {[%emt 0:02:18]} 21. fxe5 {[%emt 0:06:52]} dxe5 {[%emt 0:00:13]} 22. Ne4 {[%emt 0:00:39]} Nxe4 {[%emt 0:00:30]} 23. Qxe4 {[%emt 0:00:07]} Bd6 {[%emt 0:00:33]} 24. Rhg1 {[%emt 0:04:39]} Qf6 {[%emt 0:01:17]} 25. Qg4 {[%emt 0:06:03]} Kh8 {[%emt 0:16:27]} 26. Bc1 {[%emt 0:02:40]} b3 {[%emt 0:11:19]} 27. axb3 {[%emt 0:01:58]} axb3 {[%emt 0:00:10]} 28. cxb3 {[%emt 0:00:13]} Qf5+ {[%emt 0:00:06]} 29. Qxf5 {[%emt 0:01:23]} Rxf5 {[%emt 0:00:02]} 30. Rdf1 {[%emt 0:02:23]} Rcf8 {[%emt 0:02:14]} 31. Rxf5 {[%emt 0:01:07]} Rxf5 {[%emt 0:00:02]} 32. Kc2 {[%emt 0:02:32]} Kg8 {[%emt 0:02:33]} 33. Kd3 $16 {[%emt 0:03:29]} Kf7 {[%emt 0:01:42]} 34. Rg4 {[%emt 0:04:03]} Rf3+ {[%emt 0:01:22]} 35. Kc4 {[%emt 0:01:10]} Rh3 {[%emt 0:09:35]} 36. Kb5 {[%emt 0:04:42]} Be7 {[%emt 0:05:28]} 1/2-1/2

[Event "WYCC 2018 O18"]
[Site "Halkidiki"]
[Date "2018.10.24"]
[Round "6"]
[White "Pedoson, Georg Aleksander"]
[Black "Kandil, Adham"]
[Result "1-0"]
[ECO "E40"]
[WhiteElo "2162"]
[BlackElo "2292"]
[Annotator "NA"]
[PlyCount "97"]
[EventDate "2018.10.20"]
[EventType "swiss"]
[EventCountry "GRE"]
[SourceTitle "playchess.com"]
[Source "ChessBase"]
[SourceQuality "1"]
[TimeControl "40/5400+30:1800+30"]

1. d4 {[%emt 0:00:00]} Nf6 {[%emt 0:00:00]} 2. c4 {[%emt 0:00:00]} e6 {[%emt 0:00:00]} 3. Nc3 {[%emt 0:00:00]} Bb4 {[%emt 0:00:00]} 4. e3 {[%emt 0:00:00]} d5 {[%emt 0:00:08]} 5. Bd3 {[%emt 0:00:33]} O-O {[%emt 0:00:35]} 6. Nge2 {[%emt 0:00:09]} c5 {[%emt 0:01:09]} 7. cxd5 {[%emt 0:00:36]} cxd4 {[%emt 0:01:10]} 8. exd4 {[%emt 0:00:05]} Nxd5 {[%emt 0:01:52]} 9. O-O {[%emt 0:00:07]} Nc6 {[%emt 0:03:33]} 10. Bc2 {[%emt 0:04:56]} Be7 {[%emt 0:01:02]} 11. a3 {[%emt 0:03:03]} Nxc3 {[%emt 0:03:42]} 12. bxc3 {[%emt 0:00:35]} b6 {[%emt 0:00:05] LiveBook: 13 Games} 13. Nf4 {[%emt 0:05:32]} g6 {[%emt 0:07:26]} 14. Re1 {[%emt 0:04:25]} Bf6 {[%emt 0:01:20]} 15. Nh5 {[%emt 0:05:45]} Bh8 {[%emt 0:03:11]} 16. Bh6 {[%emt 0:02:43]} Re8 $14 {[%emt 0:02:11]} 17. Qf3 {[%emt 0:07:01]} Bb7 {[%emt 0:03:14]} 18. Qg3 {[%emt 0:00:44]} Rc8 {[%emt 0:03:11]} 19. Rac1 {[%emt 0:23:02]} Qc7 {[%emt 0:03:17]} 20. Qg5 {[%emt 0:03:08]} Qd8 {[%emt 0:03:39]} 21. Qg4 {[%emt 0:00:10]} Qd7 {[%emt 0:08:14]} 22. Qh4 {[%emt 0:04:11]} f5 {[%emt 0:04:31]} 23. Nf4 {[%emt 0:10:04]} Na5 {[%emt 0:01:14]} 24. Qg3 {[%emt 0:01:55]} Kf7 {[%emt 0:01:15]} 25. h4 {[%emt 0:01:06]} Bd5 {[%emt 0:05:08]} 26. h5 {[%emt 0:06:36]} Rg8 {[%emt 0:00:12]} 27. Nh3 {[%emt 0:00:13]} Bf6 {[%emt 0:01:01]} 28. Bg5 {[%emt 0:00:21]} gxh5 {[%emt 0:06:31]} 29. Qh4 {[%emt 0:00:36]} Bxg5 {[%emt 0:14:28]} 30. Nxg5+ {[%emt 0:00:05]} Kf8 {[%emt 0:00:13]} 31. Nxe6+ {[%emt 0:14:13]} Bxe6 {[%emt 0:01:42]} 32. Qf6+ {[%emt 0:00:03]} Qf7 {[%emt 0:01:57]} 33. Rxe6 {[%emt 0:01:17]} Qxf6 {[%emt 0:01:41]} 34. Rxf6+ {[%emt 0:00:03]} Ke7 {[%emt 0:00:07]} 35. Rh6 {[%emt 0:00:36]} Rxc3 {[%emt 0:01:12]} 36. Re1+ {[%emt 0:00:04]} Kd8 {[%emt 0:00:59]} 37. Bxf5 {[%emt 0:00:07]} Rg7 {[%emt 0:00:25]} 38. d5 {[%emt 0:02:38]} Rc5 {[%emt 0:01:39]} 39. Rhe6 {[%emt 0:01:14]} Rxd5 {[%emt 0:00:53]} 40. Re8+ {[%emt 0:00:00]} Kc7 {[%emt 0:00:00]} 41. Rc1+ {[%emt 0:00:20]} Rc5 {[%emt 0:00:33]} 42. Rc8+ {[%emt 0:00:38]} Kd6 {[%emt 0:01:34]} 43. Rd1+ {[%emt 0:00:05]} Ke5 {[%emt 0:01:06]} 44. Rf8 {[%emt 0:00:12]} Kf4 {[%emt 0:00:41]} 45. g3+ {[%emt 0:02:28]} Kg5 {[%emt 0:01:48]} 46. f4+ {[%emt 0:00:06]} Kh6 {[%emt 0:00:03]} 47. Rd6+ {[%emt 0:00:04]} Rg6 {[%emt 0:00:03]} 48. Bxg6 {[%emt 0:00:07]} hxg6 {[%emt 0:00:09]} 49. Rd7 {[%emt 0:00:22]} 1-0

[Event "WYCC 2018 O18"]
[Site "Halkidiki"]
[Date "2018.10.24"]
[Round "6"]
[White "Torres Cueto, Jesus Marcial"]
[Black "Ioannidis, Evgenios"]
[Result "1-0"]
[ECO "A40"]
[WhiteElo "2078"]
[BlackElo "2407"]
[Annotator "NA"]
[PlyCount "45"]
[EventDate "2018.10.20"]
[EventType "swiss"]
[EventCountry "GRE"]
[SourceTitle "playchess.com"]
[Source "ChessBase"]
[SourceQuality "1"]
[TimeControl "40/5400+30:1800+30"]

{[%evp 14,37,86,32767,115,39,55,32767,25,32767,73,78,126,32767,32767,193,228,32767,229,223,229,32767,231,233,244,256]} 1. d4 {[%emt 0:00:17]} e6 {[%emt 0:00:00]} 2. c4 {[%emt 0:00:31]} c5 {[%emt 0:01:09]} 3. d5 {[%emt 0:00:50]} exd5 {[%emt 0:00:13]} 4. cxd5 {[%emt 0:01:04]} d6 {[%emt 0:00:39]} 5. Nc3 {[%emt 0:00:18]} g6 {[%emt 0:00:07]} 6. Nf3 {[%emt 0:00:45]} Bg7 {[%emt 0:00:24]} 7. Qa4+ {[%emt 0:00:18]} Bd7 {[%emt 0:02:18]} 8. Qb3 {[%emt 0:00:23]} Qc7 {[%emt 0:02:37]} (8... b5 $1 $11) 9. Bf4 {[%emt 0:00:53]} (9. Ne4 $16) 9... Nf6 {[%emt 0:02:29]} 10. h3 {[%emt 0:03:51] A61: Modern Benoni: Nf3 without early e4} (10. e4 O-O 11. Nd2 Nh5 12. Be3 f5 13. exf5 Bxf5 14. h3 Nf6 15. g4 Bd7 16. Bg2 Na6 17. O-O Rab8 18. Rfe1 b5 19. Nce4 Ne8 20. a3 {½-½ (49) Riazantsev,A (2666)-Donchenko,A (2559) Douglas 2017}) 10... O-O {[%emt 0:00:46]} 11. e3 {[%emt 0:00:09]} a6 {[%emt 0:02:36]} (11... Na6 $11) 12. a4 {[%emt 0:00:33] LiveBook: 15 Games} b6 {[%emt 0:05:57]} (12... Bc8 $14) 13. Be2 {[%emt 0:01:32]} Re8 $146 {[%emt 0:01:05] [#]} ({Predecessor:} 13... Bc8 14. O-O Nbd7 15. Rfd1 Re8 16. Qc4 Nh5 17. Bh2 Ne5 18. Nxe5 Bxe5 19. Bxh5 gxh5 20. Bxe5 Rxe5 {1-0 (43) Hudec,J (2047)-Sturdik,I (1988) Slovakia 2016}) 14. Nd2 $1 {[%emt 0:00:33]} Bf8 {[%emt 0:16:46]} 15. Nc4 {[%emt 0:02:55]} Ra7 {[%emt 0:01:05]} 16. Qxb6 {[%emt 0:01:04]} ({Don't take} 16. Nxb6 Bf5) 16... Qxb6 {[%emt 0:00:05]} 17. Nxb6 {[%emt 0:00:06]} Bf5 {[%emt 0:00:21]} 18. Nc4 {[%emt 0:02:12]} Rd8 {[%emt 0:00:21]} 19. O-O-O $18 {[%emt 0:01:45]} Rb7 {[%emt 0:01:46]} 20. g4 {[%emt 0:00:50]} Bc8 {[%emt 0:00:04]} 21. Kc2 {[%emt 0:02:26]} Ne8 {[%emt 0:01:00]} 22. b3 {[%emt 0:00:23]} Nd7 {[%emt 0:00:19]} 23. Na5 {[%emt 0:00:17]} 1-0

[Event "WYCC 2018 O18"]
[Site "Halkidiki"]
[Date "2018.10.24"]
[Round "6"]
[White "Olimjonov, Sarvarbek"]
[Black "Carnicelli, Valerio"]
[Result "1/2-1/2"]
[ECO "D01"]
[WhiteElo "2074"]
[BlackElo "2299"]
[Annotator "NA"]
[PlyCount "149"]
[EventDate "2018.10.20"]
[EventType "swiss"]
[EventCountry "GRE"]
[SourceTitle "playchess.com"]
[Source "ChessBase"]
[SourceQuality "1"]
[TimeControl "40/5400+30:1800+30"]

1. d4 {[%emt 0:00:00]} Nf6 {[%emt 0:00:00]} 2. Nc3 {[%emt 0:00:20]} d5 {[%emt 0:00:00]} 3. Bg5 {[%emt 0:00:55]} g6 {[%emt 0:00:16]} 4. Bxf6 {[%emt 0:00:18]} exf6 {[%emt 0:00:05]} 5. e3 {[%emt 0:00:19]} Bg7 {[%emt 0:00:10]} 6. g3 {[%emt 0:00:58] D01: Damenbauernspiele (Richter-Weressow)} O-O {[%emt 0:01:08]} 7. Bg2 {[%emt 0:00:33]} c6 {[%emt 0:00:05]} 8. Nge2 {[%emt 0:00:32]} (8. h4 h5 9. Nge2 Bg4 10. Qd2 Bxe2 11. Nxe2 f5 12. Qb4 Qb6 13. Qb3 Nd7 {½-½ (75) Michalik,P (2557)-Ftacnik,L (2566) Prievidza 2014}) 8... Re8 {[%emt 0:00:45]} 9. O-O {[%emt 0:01:10]} Bf5 $146 {[%emt 0:01:42]} ({Vorgänger:} 9... f5 10. Nb1 Qb6 11. Qc1 Be6 12. Nd2 Nd7 13. Nf4 Nf6 {½-½ (32) Kiss,L (2261)-Kiss,V (2171) Hungary 2009}) 10. Na4 {[%emt 0:05:30]} Na6 {[%emt 0:03:40]} 11. b3 {[%emt 0:03:09]} Be4 {[%emt 0:24:33]} 12. Rc1 {[%emt 0:04:15]} Bf8 {[%emt 0:03:17]} 13. Qd2 {[%emt 0:06:30]} Ba3 {[%emt 0:02:26]} 14. Rcd1 {[%emt 0:03:30]} Qe7 {[%emt 0:02:13]} 15. c3 {[%emt 0:03:51]} h5 {[%emt 0:03:20]} 16. Bxe4 {[%emt 0:06:29]} Qxe4 {[%emt 0:07:30]} 17. b4 {[%emt 0:03:26]} b6 {[%emt 0:05:34]} 18. Qd3 {[%emt 0:03:52]} Nc7 {[%emt 0:02:54]} 19. Qxe4 {[%emt 0:03:35]} Rxe4 {[%emt 0:00:36]} 20. Rb1 {[%emt 0:01:03]} h4 {[%emt 0:01:29]} 21. Rb3 {[%emt 0:00:42]} Nb5 {[%emt 0:00:05]} 22. Nf4 {[%emt 0:01:20]} hxg3 {[%emt 0:02:06]} 23. hxg3 {[%emt 0:00:14]} Ree8 {[%emt 0:00:53]} 24. Rfb1 $11 {[%emt 0:12:35]} Reb8 {[%emt 0:08:54]} 25. Nb2 {[%emt 0:00:52]} Bxb2 {[%emt 0:01:17]} 26. R1xb2 {[%emt 0:00:16]} Nd6 {[%emt 0:01:22]} 27. b5 {[%emt 0:07:20]} Nxb5 {[%emt 0:10:00]} 28. Nxd5 {[%emt 0:00:59]} cxd5 {[%emt 0:00:09]} 29. Rxb5 {[%emt 0:00:04]} Rd8 {[%emt 0:00:12]} 30. Kf1 {[%emt 0:00:30]} Kf8 {[%emt 0:00:18]} 31. Ke2 {[%emt 0:00:05]} Ke7 {[%emt 0:00:12]} 32. Kd3 {[%emt 0:00:14]} Rac8 {[%emt 0:00:19]} 33. a4 {[%emt 0:01:03]} Rc6 {[%emt 0:02:28]} 34. a5 {[%emt 0:01:38]} bxa5 {[%emt 0:00:10]} 35. Rxa5 {[%emt 0:00:09]} Rd7 {[%emt 0:00:12]} 36. Rba2 {[%emt 0:02:57]} Rdc7 {[%emt 0:00:10]} 37. R2a3 {[%emt 0:00:12]} Ke6 {[%emt 0:00:12]} 38. g4 {[%emt 0:02:37]} Kd6 {[%emt 0:00:42]} 39. f3 {[%emt 0:02:43]} f5 {[%emt 0:00:35]} 40. gxf5 {[%emt 0:00:00]} gxf5 {[%emt 0:00:00]} 41. f4 {[%emt 0:01:30]} Ke6 {[%emt 0:03:16]} 42. Kd2 {[%emt 0:01:41]} Kd6 {[%emt 0:02:09]} 43. Rxa7 {[%emt 0:07:20]} Rxc3 {[%emt 0:01:09]} 44. R3a6+ {[%emt 0:01:06]} Ke7 {[%emt 0:02:16]} 45. Ra2 {[%emt 0:12:38]} Rc2+ {[%emt 0:00:29]} 46. Rxc2 {[%emt 0:03:13]} Rxa7 {[%emt 0:00:05]} 47. Rc3 {[%emt 0:00:23]} Kd6 {[%emt 0:00:09]} 48. Rb3 {[%emt 0:04:57]} Rc7 {[%emt 0:01:40]} 49. Rb8 {[%emt 0:00:49]} Ke7 {[%emt 0:00:22]} 50. Rb6 {[%emt 0:00:37]} Ra7 {[%emt 0:00:21]} 51. Kc3 {[%emt 0:02:26]} Rc7+ {[%emt 0:01:00]} 52. Kb3 {[%emt 0:00:26]} Rc1 {[%emt 0:00:38]} 53. Ka4 {[%emt 0:02:44]} Rc4+ {[%emt 0:00:14]} 54. Rb4 {[%emt 0:00:25]} Rc7 {[%emt 0:00:39]} 55. Rb5 {[%emt 0:03:35]} Kd6 {[%emt 0:00:14]} 56. Rb6+ {[%emt 0:00:33]} Ke7 {[%emt 0:00:05]} 57. Kb4 {[%emt 0:02:18]} Rc4+ {[%emt 0:00:22]} 58. Kb3 {[%emt 0:01:49]} Rc7 {[%emt 0:00:12]} 59. Ra6 {[%emt 0:03:41]} Rb7+ {[%emt 0:00:38]} 60. Kc3 {[%emt 0:00:23]} Rc7+ {[%emt 0:00:03]} 61. Kb4 {[%emt 0:00:46]} Rc4+ {[%emt 0:00:05]} 62. Kb3 {[%emt 0:02:13]} Rc7 {[%emt 0:00:05]} 63. Rb6 {[%emt 0:00:29]} Rc1 {[%emt 0:00:16]} 64. Kb4 {[%emt 0:01:23]} Rc4+ {[%emt 0:00:04]} 65. Ka3 {[%emt 0:00:22]} Rc3+ {[%emt 0:00:04]} 66. Rb3 {[%emt 0:00:04]} Rc7 {[%emt 0:00:04]} 67. Ka4 {[%emt 0:00:28]} Ra7+ {[%emt 0:00:09]} 68. Kb4 {[%emt 0:00:10]} Rb7+ {[%emt 0:00:03]} 69. Kc3 {[%emt 0:00:17]} Rc7+ {[%emt 0:00:03]} 70. Kd2 {[%emt 0:00:21]} Ra7 {[%emt 0:00:06]} 71. Ke2 {[%emt 0:02:04]} Ra1 {[%emt 0:00:22]} 72. Kf2 {[%emt 0:00:17]} Ra2+ {[%emt 0:00:19]} 73. Kg3 {[%emt 0:00:06]} Rc2 {[%emt 0:00:20]} 74. Rb7+ {[%emt 0:01:20]} Ke6 {[%emt 0:00:05]} 75. Rb8 {[%emt 0:00:20] Ke5} 1/2-1/2

[Event "WYCC 2018 O18"]
[Site "Halkidiki"]
[Date "2018.10.24"]
[Round "6"]
[White "Liang, Albert"]
[Black "Martinez Fernandez, Adrian"]
[Result "0-1"]
[ECO "B91"]
[WhiteElo "2042"]
[BlackElo "2277"]
[Annotator "NA"]
[PlyCount "96"]
[EventDate "2018.10.20"]
[EventType "swiss"]
[EventCountry "GRE"]
[SourceTitle "playchess.com"]
[Source "ChessBase"]
[SourceQuality "1"]
[TimeControl "40/5400+30:1800+30"]

1. e4 {[%emt 0:00:00]} c5 {[%emt 0:00:00]} 2. Nf3 {[%emt 0:00:00]} d6 {[%emt 0:00:00]} 3. d4 {[%emt 0:00:00]} cxd4 {[%emt 0:00:00]} 4. Nxd4 {[%emt 0:00:00]} Nf6 {[%emt 0:00:00]} 5. Nc3 {[%emt 0:00:07]} a6 {[%emt 0:00:00] LiveBook: 63765 Games} 6. g3 {[%emt 0:00:33]} e5 {[%emt 0:00:07]} 7. Nb3 {[%emt 0:00:14]} Be7 {[%emt 0:00:08]} 8. Bg2 {[%emt 0:00:21]} O-O {[%emt 0:00:09]} 9. O-O {[%emt 0:00:19]} b5 {[%emt 0:00:06]} 10. a4 {[%emt 0:01:11] B91: Sicilian Najdorf: 6 g3} (10. Nd5 Nxd5 11. Qxd5 Ra7 12. Be3 Be6 13. Qd2 Ra8 14. a4 Nc6 15. axb5 axb5 16. Rxa8 Qxa8 17. Ra1 Qb7 {½-½ (58) Naiditsch,A (2710)-Vidit,S (2693) Linares 2017}) 10... b4 {[%emt 0:00:10]} 11. Nd5 {[%emt 0:00:09]} Nxd5 {[%emt 0:00:09]} 12. Qxd5 {[%emt 0:00:29]} Ra7 {[%emt 0:00:07]} 13. Be3 {[%emt 0:00:19]} Be6 {[%emt 0:00:09]} 14. Qd3 {[%emt 0:09:04]} Rb7 {[%emt 0:00:24]} 15. Rfd1 {[%emt 0:05:12]} Qc7 {[%emt 0:00:24]} 16. Nd2 {[%emt 0:05:35]} Rc8 {[%emt 0:00:15]} 17. Rac1 {[%emt 0:00:58] [#]} Qd7 $146 {[%emt 0:00:13]} ({Predecessor:} 17... Qa5) 18. b3 {[%emt 0:05:49]} Rbc7 {[%emt 0:00:14]} 19. Nb1 {[%emt 0:07:12]} Rc6 {[%emt 0:02:06]} 20. f4 {[%emt 0:04:48]} f6 {[%emt 0:00:09]} 21. Rd2 {[%emt 0:08:34]} Qb7 {[%emt 0:04:46]} 22. h4 {[%emt 0:04:44]} Bd8 {[%emt 0:05:09]} 23. Kh2 {[%emt 0:09:02]} Bb6 {[%emt 0:13:58]} 24. Bh3 {[%emt 0:06:50]} Bxh3 {[%emt 0:00:12]} 25. Kxh3 {[%emt 0:00:20]} Rc3 {[%emt 0:14:28]} 26. Nxc3 $19 {[%emt 0:07:13]} Rxc3 {[%emt 0:00:17]} 27. Qxd6 {[%emt 0:03:22]} Qc8+ {[%emt 0:00:40]} 28. f5 {[%emt 0:00:02]} Bxe3 {[%emt 0:01:10]} 29. Qd8+ {[%emt 0:07:27]} Kf7 {[%emt 0:00:51]} 30. Qd5+ {[%emt 0:02:14]} Ke7 {[%emt 0:00:29]} 31. Qd6+ {[%emt 0:01:02]} Ke8 {[%emt 0:00:13]} 32. Rcd1 {[%emt 0:00:43]} Bxd2 {[%emt 0:00:11]} 33. Rxd2 {[%emt 0:00:02]} Nc6 {[%emt 0:04:49]} 34. a5 {[%emt 0:08:14]} h5 {[%emt 0:08:24]} 35. Qd5 {[%emt 0:02:02]} Kf8 {[%emt 0:03:23]} 36. Qd6+ {[%emt 0:00:17]} Ke8 {[%emt 0:01:57]} 37. Qd5 {[%emt 0:00:04]} Ne7 {[%emt 0:00:24]} 38. Qd6 {[%emt 0:00:25]} Rxc2 {[%emt 0:07:51]} 39. Rxc2 {[%emt 0:01:23]} Qxc2 {[%emt 0:00:03]} 40. Qxa6 {[%emt 0:00:00]} Qxe4 {[%emt 0:00:00]} 41. Kh2 {[%emt 0:10:12]} Qc2+ {[%emt 0:02:48]} 42. Kg1 {[%emt 0:00:15]} Qxb3 {[%emt 0:01:08]} 43. Qb5+ {[%emt 0:05:09]} Kf7 {[%emt 0:00:11]} 44. a6 {[%emt 0:00:14]} Qxg3+ {[%emt 0:00:22]} 45. Kf1 {[%emt 0:00:10]} Qa3 {[%emt 0:00:58]} 46. Qe2 {[%emt 0:04:51]} b3 {[%emt 0:04:00]} 47. Qxh5+ {[%emt 0:00:25]} Kf8 {[%emt 0:00:04]} 48. Qe2 {[%emt 0:01:33]} b2 {[%emt 0:01:55]} 0-1